bitfinex/quotes_ETHUSD_20220113
["timestamp","ask_amount","ask_price","bid_price","bid_amount"]
[1642037189852,0.00341054,3351.8,3351.1,0.1193]
[1642037190253,0.00284212,3351.7,3351.1,0.1193]
[1642037190497,0.00284212,3351.7,3351.0,0.90909477]
[1642037190702,0.0022737,3351.6,3351.0,0.90909477]
[1642037191101,0.00170527,3351.5,3351.0,0.90909477]
[1642037191298,0.00170527,3351.5,3351.3,0.00170007]
[1642037191501,0.00113685,3351.4,3351.3,0.00170007]
[1642037196551,0.00346025,3351.4,3351.0,0.91079484]
[1642037197351,2.55734133,3351.3,3351.0,0.91079484]
[1642037198398,0.00346025,3351.4,3351.0,0.91079484]
[1642037199194,2.55734133,3351.3,3351.0,0.91079484]
[1642037199999,0.00346025,3351.4,3351.0,0.91079484]
[1642037200800,2.55734133,3351.3,3351.0,0.91079484]
[1642037201201,2.55966449,3351.3,3351.2,0.00414223]
[1642037202167,0.00232316,3351.3,3351.2,0.00414223]
[1642037202968,2.55966449,3351.3,3351.2,0.00414223]
[1642037203571,0.00232316,3351.3,3351.2,0.00414223]
[1642037204468,2.55966449,3351.3,3351.2,0.00414223]
[1642037205268,0.00232316,3351.3,3351.2,0.00414223]
[1642037206299,2.55966449,3351.3,3351.2,0.00414223]
[1642037206497,2.55734133,3351.3,3351.0,0.913237]
[1642037207300,0.00113685,3351.4,3351.0,0.913237]
[1642037208701,2.55953611,3351.4,3351.0,0.913237]
[1642037210348,2.55953611,3351.4,3351.0,0.863237]
[1642037211455,2.56185951,3351.4,3351.2,0.00414223]
[1642037212654,2.55839926,3351.3,3351.2,0.00414223]
[1642037214304,0.00346025,3351.4,3351.2,0.00414223]
[1642037215500,2.55828782,3351.3,3351.2,0.00414223]
[1642037216505,2.56060876,3351.3,3351.0,0.86210261]
[1642037218657,3.67278191,3351.3,3351.0,0.86210261]
[1642037219659,2.55828782,3351.2,3351.0,0.86210261]
[1642037220058,4.67921406,3351.2,3351.0,0.86210261]
[1642037220257,5.38522225,3351.1,3351.0,0.86210261]
[1642037220497,5.93052225,3351.1,3351.0,0.86210261]
[1642037220698,6.23052225,3351.1,3351.0,0.86210261]
[1642037221305,6.2328679,3351.1,3351.0,0.86210261]
[1642037221701,8.79115572,3351.1,3351.0,0.86210261]
[1642037221905,9.64418974,3351.1,3351.0,0.86210261]
[1642037222102,6.39418974,3351.1,3351.0,0.86210261]
[1642037222803,4.25896749,3351.1,3351.0,0.86210261]
[1642037223203,3.40593347,3351.1,3351.0,0.86210261]
[1642037225463,10.47021918,3351.1,3351.0,0.86210261]
[1642037225864,11.0232532,3351.1,3351.0,0.86210261]
[1642037226265,10.9039532,3351.1,3351.0,0.86210261]
[1642037226665,0.7463297,3350.7,3350.1,0.1193]
[1642037226869,7.69257,3351.0,3350.0,18.0865285]
[1642037226870,0.01205768,3350.3,3350.0,18.0865285]
[1642037227073,0.426,3350.2,3350.0,18.0865285]
[1642037227269,0.5453,3350.2,3350.0,14.3803285]
[1642037227468,0.8453,3350.2,3350.0,14.3803285]
[1642037228100,9.84298123,3350.1,3350.0,14.3803285]
[1642037228300,10.26898123,3350.1,3350.0,0.313845]
[1642037228502,0.7465334,3349.7,3349.3,0.9499821]
[1642037228700,0.426,3349.6,3349.3,1.0693821]
[1642037228902,0.326,3349.6,3349.4,0.01023162]
[1642037229703,2.55828782,3349.5,3349.4,0.01023162]
[1642037229900,5.55,3349.4,3349.3,0.91021372]
[1642037230107,5.55,3349.4,3348.7,0.1194]
[1642037230108,0.7466313,3349.2,3348.7,0.1194]
[1642037230309,0.7466313,3349.2,3348.0,0.1194]
[1642037230310,0.726,3349.1,3348.0,0.1194]
[1642037230503,0.726,3349.1,3347.2,1.71000645]
[1642037230504,0.01298597,3348.8,3347.5,0.1194]
[1642037230705,0.8454,3349.1,3347.5,0.1194]
[1642037230706,0.426,3348.7,3347.5,0.1194]
[1642037230904,0.1194,3349.1,3348.2,1.22532325]
[1642037231107,0.1194,3349.1,3347.2,0.18852211]
[1642037231108,0.1194,3349.1,3348.3,2.12130026]
[1642037231306,0.00341054,3348.6,3348.3,0.1194]
[1642037231788,0.00284212,3348.5,3347.9,0.2]
[1642037232190,0.0022737,3348.4,3347.9,0.2]
[1642037232589,0.00170527,3348.3,3347.9,0.2]
[1642037232991,0.00113685,3348.2,3347.9,0.2]
[1642037233393,0.7467826,3348.4,3347.9,0.2]
[1642037233792,0.00170527,3348.3,3347.9,0.2]
[1642037234192,0.00113685,3348.2,3347.9,0.2]
[1642037234594,2.98650168,3348.6,3347.9,0.2]
[1642037234595,0.74959162,3348.5,3347.9,0.2]
[1642037234794,0.74959162,3348.5,3347.4,0.0135907]
[1642037234795,7.35,3348.3,3347.4,0.0135907]
[1642037234999,2.24097,3348.0,3347.4,0.0135907]
[1642037235193,0.42713685,3348.2,3347.5,0.00284212]
[1642037235402,0.37713685,3348.2,3347.5,0.00284212]
[1642037236505,0.49653685,3348.2,3347.5,0.00284212]
[1642037236711,0.7469,3348.1,3347.5,0.00284212]
[1642037237009,0.49653685,3348.2,3347.5,0.00284212]
[1642037237210,0.37713685,3348.2,3347.5,0.00284212]
[1642037237812,0.7468728,3348.0,3347.5,0.00284212]
[1642037238412,1.49887147,3347.8,3347.5,0.00284212]
[1642037238614,2.24587147,3347.8,3347.5,0.00284212]
[1642037238814,2.24587147,3347.8,3346.3,0.9999821]
[1642037238815,0.7470985,3347.1,3346.3,0.9999821]
[1642037239015,1.1730985,3347.1,3346.3,0.9999821]
[1642037239273,1.1730985,3347.1,3346.4,0.00625265]
[1642037239274,0.1195,3347.0,3346.4,0.00625265]
[1642037239870,0.426,3346.9,3346.4,0.00625265]
[1642037240176,0.426,3346.9,3346.0,3.50665481]
[1642037240372,0.00227369,3346.8,3346.0,3.50665481]
[1642037240572,0.426,3346.7,3346.1,0.00170527]
[1642037240772,0.42770527,3346.7,3346.1,0.00170527]
[1642037240971,0.00113684,3346.6,3346.1,0.00170527]
[1642037241171,0.00113684,3346.6,3346.0,0.0022737]
[1642037241376,0.01294405,3346.3,3344.6,1.49428]
[1642037241576,0.276,3346.2,3345.2,0.06513886]
[1642037241772,0.39663685,3346.2,3344.7,0.0073895]
[1642037242172,0.39663685,3346.2,3344.6,0.00795793]
[1642037242472,2.34117965,3345.7,3344.6,0.00795793]
[1642037242677,0.5455,3345.6,3344.6,0.00795793]
[1642037243507,0.7474677,3345.5,3344.6,0.00795793]
[1642037243707,1.17353,3345.4,3344.6,0.00795793]
[1642037244108,4.7,3345.3,3344.5,0.09800793]
[1642037244311,0.426,3345.2,3344.5,0.09800793]
[1642037244515,0.426,3345.2,3344.0,0.01691309]
[1642037244516,7.35,3345.0,3344.0,0.01691309]
[1642037244718,7.35,3345.0,3343.5,3.85081309]
[1642037244719,2.788621,3344.9,3343.5,3.85081309]
[1642037244915,0.75120527,3344.9,3344.1,0.00284211]
[1642037245115,0.00113685,3344.8,3344.1,0.00284211]
[1642037245317,0.426,3344.7,3344.1,0.00284211]
[1642037245515,0.426,3344.7,3343.9,0.00397896]
[1642037245716,0.426,3344.7,3343.5,3.80479205]
[1642037245916,0.00397896,3344.6,3343.6,2.00170527]
[1642037246321,0.00341054,3344.5,3344.1,1.12501415]
[1642037246752,0.00232744,3344.8,3344.1,1.12501415]
[1642037246954,0.00284212,3344.4,3343.7,0.00113685]
[1642037247154,0.00454739,3344.7,3343.7,0.00113685]
[1642037247356,0.00227369,3344.3,3343.7,0.00113685]
[1642037247557,0.00397896,3344.6,3343.7,0.00113685]
[1642037247755,0.00170527,3344.2,3343.7,0.00113685]
[1642037247960,0.00341054,3344.5,3344.0,1.2057917]
[1642037248158,0.00113685,3344.1,3344.0,1.2057917]
[1642037248358,0.00284212,3344.4,3344.0,8.5557917]
[1642037248557,0.00232744,3344.8,3344.2,0.04189338]
[1642037248759,0.00232744,3344.8,3344.1,1.0]
[1642037248959,0.00454739,3344.7,3344.1,1.0]
[1642037249261,0.00397896,3344.6,3344.1,2.41506527]
[1642037249458,0.00397896,3344.6,3344.2,0.03021883]
[1642037249659,0.00341054,3344.5,3344.1,1.0]
[1642037250062,0.00284212,3344.4,3344.1,1.0]
[1642037250516,0.00227369,3344.3,3344.1,1.0]
[1642037250716,0.00227369,3344.3,3344.1,1.3]
[1642037250915,0.00232744,3344.8,3344.4,0.04411198]
[1642037251115,0.00232744,3344.8,3344.4,1.47011198]
[1642037251314,0.0022737,3344.7,3344.5,2.03200642]
[1642037251515,0.85392403,3346.1,3345.2,1.40401637]
[1642037251718,0.85392403,3346.1,3345.8,1.10648257]
[1642037251919,2.9045139,3346.6,3344.8,0.426]
[1642037251920,0.0073895,3346.0,3344.9,2.0]
[1642037252121,0.0073895,3346.0,3345.0,0.426]
[1642037252319,0.00682108,3345.9,3345.0,0.4639928]
[1642037252718,0.00625266,3345.8,3345.0,0.426]
[1642037252919,0.00625266,3345.8,3345.4,1.25028191]
[1642037253123,0.00568423,3345.7,3345.4,1.58124608]
[1642037253519,1.581e-05,3345.6,3345.5,7.726]
[1642037253722,0.85392403,3347.5,3345.7,0.04388247]
[1642037253921,0.00909477,3347.2,3346.4,0.01293413]
[1642037254359,0.00852635,3347.1,3345.6,3.9517]
[1642037254558,0.12802635,3347.1,3345.6,3.9517]
[1642037254760,2.0129482,3347.5,3345.6,3.9517]
[1642037254761,0.07745793,3347.4,3345.7,7.0]
[1642037254961,0.07745793,3347.4,3345.7,7.00738951]
[1642037255162,0.07973162,3347.4,3345.8,0.00682108]
[1642037255362,1.33505156,3347.2,3345.8,1.16722095]
[1642037255561,0.1195,3347.1,3345.8,0.00682108]
[1642037255765,0.1195,3347.1,3345.9,0.00625266]
[1642037255963,0.1195,3347.1,3345.8,0.00682108]
[1642037256162,0.1195,3347.1,3345.7,0.30738951]
[1642037256362,0.1195,3347.1,3345.8,0.00682108]
[1642037256764,1.32035343,3346.8,3345.8,0.00682108]
[1642037256963,0.1195,3346.7,3345.8,0.00682108]
[1642037257163,2.354597,3346.7,3345.8,0.00682108]
[1642037257364,0.426,3346.6,3345.8,0.00682108]
[1642037257664,0.1195,3346.5,3345.3,0.0096632]
[1642037257905,0.5455,3346.5,3345.3,0.0096632]
[1642037258107,0.426,3346.5,3345.3,0.0096632]
[1642037258407,0.1195,3346.4,3345.3,0.0096632]
[1642037259004,0.1195,3346.6,3345.2,0.01023163]
[1642037260009,1.44141721,3346.2,3345.2,0.01023163]
[1642037260209,0.1195,3346.1,3345.2,0.01023163]
[1642037261013,0.1195,3346.5,3345.2,0.01023163]
[1642037261211,1.13932808,3346.4,3345.2,0.01023163]
[1642037261411,0.1195,3346.3,3345.2,0.01023163]
[1642037262259,2.40319681,3346.3,3345.2,0.01023163]
[1642037262459,0.426,3346.2,3345.2,0.01023163]
[1642037262659,2.39458896,3346.1,3345.2,0.01023163]
[1642037262861,0.1195,3346.1,3345.2,0.01023163]
[1642037263263,1.11508808,3345.8,3345.2,0.01023163]
[1642037263463,1.54108808,3345.8,3345.2,0.01023163]
[1642037263666,0.1195,3345.7,3345.2,0.01023163]
[1642037265065,0.1195,3345.7,3344.7,0.01307374]
[1642037265263,0.426,3345.8,3344.7,0.01307374]
[1642037266314,0.00261755,3345.6,3344.7,0.01307374]
[1642037268319,0.00261755,3345.6,3344.6,0.08257374]
[1642037268519,0.00454738,3345.5,3344.6,0.08257374]
[1642037268921,0.00397896,3345.4,3344.6,0.08257374]
[1642037269364,0.38202809,3345.8,3344.7,7.1]
[1642037269564,0.1195,3345.7,3344.8,0.06094552]
[1642037269765,0.00113684,3345.5,3344.8,0.06094552]
[1642037269965,0.00113684,3345.5,3344.9,0.0022737]
[1642037270164,0.00113684,3345.5,3345.0,0.04448011]
[1642037270470,0.00113684,3345.5,3345.1,0.00113685]
[1642037271666,0.00113684,3345.5,3344.9,0.0022737]
[1642037272902,0.00113684,3345.5,3344.5,2.7591742]
[1642037273106,0.00113684,3345.5,3344.5,3.0591742]
[1642037273306,0.1195,3345.9,3344.5,3.0591742]
[1642037273307,0.00284212,3345.4,3344.6,0.00170527]
[1642037273707,0.1195,3346.3,3344.6,0.00170527]
[1642037273708,0.0022737,3345.3,3344.6,0.00170527]
[1642037274109,0.00170527,3345.2,3344.6,0.00170527]
[1642037274509,0.00113685,3345.1,3344.6,0.00170527]
[1642037274907,0.00454739,3345.7,3344.6,0.00170527]
[1642037275309,0.00397897,3345.6,3344.6,0.00170527]
[1642037275509,0.12347897,3345.6,3344.6,0.00170527]
[1642037275708,0.00341054,3345.5,3344.5,0.00227369]
[1642037276113,0.12234212,3345.4,3344.5,0.00227369]
[1642037276310,0.00284212,3345.4,3344.5,0.00227369]
[1642037276658,0.0022737,3345.3,3344.8,1.09337673]
[1642037276859,0.0022737,3345.3,3344.8,2.58383611]
[1642037277061,0.00170527,3345.2,3344.9,0.3]
[1642037277462,0.00113685,3345.1,3344.9,0.3]
[1642037277761,0.00170527,3345.2,3344.9,0.3]
[1642037278164,0.00113685,3345.1,3344.9,0.3]
[1642037278563,0.00568424,3345.9,3344.9,0.3]
[1642037278963,0.00511582,3345.8,3344.9,0.3]
[1642037279363,0.00454739,3345.7,3344.9,0.33566244]
[1642037279766,0.00397897,3345.6,3344.9,0.33566244]
[1642037280166,0.00341054,3345.5,3344.9,0.33566244]
[1642037280602,0.00284212,3345.4,3344.9,0.33566244]
[1642037281006,0.91699126,3345.7,3345.1,0.3735208]
[1642037281309,1.50911993,3346.5,3345.6,3.7]
[1642037281710,0.00625266,3346.4,3345.6,3.7388896]
[1642037282107,0.00568423,3346.3,3345.8,1.30567642]
[1642037282509,0.00511581,3346.2,3345.8,1.30567642]
[1642037282907,0.00454739,3346.1,3345.8,1.30567642]
[1642037283112,0.85392403,3346.6,3345.8,1.30567642]
[1642037283113,0.85392403,3346.6,3345.9,7.3]
[1642037283309,0.85392403,3346.6,3346.2,0.3733887]
[1642037283507,3.10438604,3347.4,3346.2,0.3733887]
[1642037283508,0.00227369,3346.5,3346.2,0.3733887]
[1642037283907,1.50911993,3347.0,3346.3,7.10969847]
[1642037283908,0.00170527,3346.4,3346.3,7.10969847]
[1642037284178,0.00170527,3346.4,3346.3,2.90969847]
[1642037284777,0.00170527,3346.4,3346.3,5.65969847]
[1642037284976,0.00170527,3346.4,3346.3,4.65969847]
[1642037285176,0.00170527,3346.4,3346.3,5.65969847]
[1642037285781,0.00170527,3346.4,3346.3,8.50969847]
[1642037286382,0.00170527,3346.4,3346.3,5.65969847]
[1642037287926,0.00170527,3346.4,3346.3,10.21058861]
[1642037288122,0.00170527,3346.4,3346.3,10.63658861]
[1642037288319,0.1195,3347.7,3346.4,7.25]
[1642037288523,0.1195,3347.7,3346.5,2.60517579]
[1642037288721,0.00511581,3347.3,3346.8,1.40552382]
[1642037288922,0.00511581,3347.3,3346.9,2.17280791]
[1642037289122,0.00454738,3347.2,3346.9,3.17280791]
[1642037289523,0.00397896,3347.1,3346.9,3.17280791]
[1642037289722,0.11757896,3348.0,3347.0,7.96578947]
[1642037290021,0.00454739,3347.9,3347.0,1.81578947]
[1642037290221,0.1194,3347.8,3347.0,1.81578947]
[1642037290422,0.12337896,3347.8,3347.0,1.81578947]
[1642037290623,0.00341054,3347.7,3347.0,1.81578947]
[1642037291024,0.00284212,3347.6,3347.0,1.81578947]
[1642037291424,0.00227369,3347.5,3347.0,1.81578947]
[1642037291862,0.00170527,3347.4,3347.0,1.81578947]
[1642037292265,0.00113685,3347.3,3347.0,1.81578947]
[1642037292463,0.00113685,3347.3,3347.0,2.11578947]
[1642037292662,0.00511581,3348.0,3347.0,2.1485058]
[1642037292862,0.00511581,3348.0,3347.1,0.426]
[1642037293063,0.00511581,3348.0,3347.2,2.06459687]
[1642037293263,0.00511581,3348.0,3347.3,0.3]
[1642037293463,0.00511581,3348.0,3347.4,2.04906558]
[1642037293866,0.00511581,3348.0,3347.3,0.3]
[1642037294065,0.00511581,3348.0,3346.9,0.88881803]
[1642037294267,0.00511581,3348.0,3346.5,5.4728]
[1642037294268,0.1194,3347.9,3346.5,5.4728]
[1642037294665,0.1194,3347.9,3346.9,0.00113685]
[1642037294666,0.00397896,3347.8,3346.9,0.00113685]
[1642037295063,1.41266253,3347.7,3346.9,0.00113685]
[1642037295264,1.29326253,3347.7,3346.9,0.00113685]
[1642037295504,0.12224212,3347.6,3346.9,0.00113685]
[1642037295909,0.00227369,3347.5,3346.9,0.00113685]
[1642037296309,0.00170527,3347.4,3347.0,0.00530932]
[1642037296709,0.1194,3347.6,3347.0,0.00530932]
[1642037296710,0.00113685,3347.3,3347.0,0.00530932]
[1642037297110,0.00227369,3347.5,3347.0,0.00530932]
[1642037297510,0.00170527,3347.4,3347.0,0.00530932]
[1642037297911,0.00113685,3347.3,3347.0,0.00530932]
[1642037298311,1.13307843,3348.0,3347.0,0.00530932]
[1642037298515,0.1194,3347.9,3347.0,0.00530932]
[1642037298912,0.00397896,3347.8,3347.0,0.00530932]
[1642037299348,0.00341054,3347.7,3347.0,0.00530932]
[1642037299851,0.00284212,3347.6,3347.0,0.00530932]
[1642037300249,0.00227369,3347.5,3347.0,0.00530932]
[1642037300651,0.00170527,3347.4,3347.0,0.00530932]
[1642037301155,0.00113685,3347.3,3347.0,0.00530932]
[1642037301556,2.61932912,3347.4,3347.0,0.00530932]
[1642037301956,0.12063685,3347.3,3347.0,0.00530932]
[1642037303101,0.00113685,3347.3,3347.0,0.00530932]
[1642037307764,0.12063685,3347.3,3347.0,0.00530932]
[1642037308862,2.56178771,3347.2,3347.0,0.00530932]
[1642037311604,0.00113685,3347.3,3347.0,0.00530932]
[1642037312911,2.56292456,3347.3,3347.0,0.00530932]
[1642037313710,0.00113685,3347.3,3347.0,0.00530932]
[1642037315158,0.00113685,3347.3,3347.1,0.3733034]
[1642037315561,0.00113685,3347.3,3347.0,0.03813007]
[1642037315759,0.00113685,3347.3,3347.0,0.00530932]
[1642037316960,0.00113685,3347.3,3347.0,0.41632447]
[1642037318606,0.00113685,3347.3,3347.1,0.3]
[1642037318806,0.00113685,3347.3,3347.1,0.3327913]
[1642037319006,0.00113685,3347.3,3347.1,0.3]
[1642037319208,0.00113685,3347.3,3347.1,0.33747037]
[1642037319407,0.00113685,3347.3,3347.1,0.33099842]
[1642037320211,0.00113685,3347.3,3347.1,0.3]
[1642037320613,0.00113685,3347.3,3347.1,0.6733024]
[1642037321012,0.00113685,3347.3,3347.2,0.03019068]
[1642037322857,0.00113685,3347.3,3347.1,0.9733024]
[1642037323156,0.00113685,3347.3,3347.1,0.6]
[1642037323358,0.00113685,3347.3,3347.1,0.3]
[1642037323955,0.00113685,3347.3,3347.2,1.77464387]
[1642037324961,0.00113685,3347.3,3347.2,1.80584527]
[1642037325414,0.00113685,3347.3,3347.2,5.45584527]
[1642037326919,0.00113685,3347.3,3347.2,1.80584527]
[1642037327218,0.00113685,3347.3,3347.1,0.60533199]
[1642037327418,0.00113685,3347.3,3347.1,0.30533199]
[1642037327618,0.00113685,3347.3,3347.2,1.78783552]
[1642037327823,0.00113685,3347.3,3347.2,1.82713858]
[1642037328221,0.00113685,3347.3,3347.2,5.68257315]
[1642037329856,0.00113685,3347.3,3347.2,0.03930306]
[1642037330057,2.56136064,3348.2,3347.2,0.03930306]
[1642037330256,2.56136064,3348.2,3347.3,0.3]
[1642037330257,0.1194,3348.1,3347.3,0.3]
[1642037330460,0.00341054,3347.9,3347.3,0.3]
[1642037330658,0.1194,3347.8,3347.3,0.3]
[1642037330857,0.12224211,3347.8,3347.1,0.00533199]
[1642037331059,0.00227369,3347.7,3347.1,0.30533199]
[1642037331265,0.00227369,3347.7,3347.1,0.3]
[1642037331460,0.86614,3348.1,3347.0,0.3]
[1642037331461,0.00170527,3347.6,3347.0,0.3]
[1642037331658,0.12110527,3347.6,3347.0,0.3]
[1642037331858,0.00113684,3347.5,3347.1,0.00113685]
[1642037332258,0.1194,3347.6,3347.1,0.00113685]
[1642037332558,1.29289535,3347.3,3347.0,0.00170527]
[1642037334109,2.56136064,3347.2,3347.0,0.00170527]
[1642037334306,3.7195,3347.1,3347.0,0.00170527]
[1642037335306,0.1195,3347.1,3347.0,0.00170527]
[1642037336654,2.68086064,3347.2,3347.0,0.00170527]
[1642037336854,2.68086064,3347.2,3346.9,0.0022737]
[1642037337255,2.56136064,3347.1,3346.9,0.0022737]
[1642037337655,3.47736064,3347.1,3346.9,0.0022737]
[1642037338158,3.32736064,3347.1,3346.9,0.0022737]
[1642037338959,0.916,3347.1,3346.9,0.0022737]
[1642037339159,0.1195,3347.3,3346.9,0.0022737]
[1642037339561,1.33668618,3347.3,3346.9,0.0022737]
[1642037339760,0.1195,3347.3,3346.9,0.0022737]
[1642037340605,0.1195,3347.3,3346.4,3.82549177]
[1642037340805,0.00170527,3347.2,3346.4,4.12549177]
[1642037341005,0.00170527,3347.2,3346.5,0.00227369]
[1642037341207,0.00113685,3347.1,3346.5,0.00227369]
[1642037341413,0.00113685,3347.1,3347.0,0.00533705]
[1642037341616,0.0022737,3347.3,3347.0,0.00533705]
[1642037341812,0.00113685,3347.1,3347.0,0.00533705]
[1642037345372,1.10748627,3347.1,3347.0,0.00533705]
[1642037345771,1.05748627,3347.1,3347.0,0.00533705]
[1642037346372,1.05748627,3347.1,3346.5,0.00227369]
[1642037346774,1.05748627,3347.1,3346.5,0.00341054]
[1642037347372,1.17698627,3347.1,3346.5,0.00341054]
[1642037347576,1.17698627,3347.1,3346.4,0.00397896]
[1642037347772,1.23926469,3346.6,3346.4,0.00397896]
[1642037350111,1.05748627,3347.1,3346.4,0.00397896]
[1642037350312,1.78235055,3347.1,3346.4,0.00397896]
[1642037351113,1.3658697,3346.8,3346.4,0.00397896]
[1642037351969,1.13545197,3346.5,3346.0,0.00625266]
[1642037352365,0.1195,3346.4,3346.0,0.00625266]
[1642037352566,1.44984852,3345.8,3345.3,0.0071428]
[1642037352767,3.6,3346.3,3345.4,0.00341054]
[1642037352768,3.60170527,3346.3,3345.4,0.00341054]
[1642037353169,0.1195,3346.4,3345.4,0.00341054]
[1642037353170,0.00113685,3346.2,3345.4,0.00341054]
[1642037354367,0.00113685,3346.2,3345.4,0.37693924]
[1642037354567,0.00113685,3346.2,3345.4,0.00341054]
[1642037354770,0.00113685,3346.2,3345.5,0.00284212]
[1642037355611,0.00113685,3346.2,3345.5,0.34171534]
[1642037356015,0.00113685,3346.2,3345.6,0.00227369]
[1642037358316,3.15,3346.1,3345.1,9.46618764]
[1642037358517,3.15,3346.1,3345.2,0.3]
[1642037358816,0.00227369,3346.0,3345.4,0.00113685]
[1642037359264,0.00170527,3345.9,3345.4,0.00113685]
[1642037359762,0.00113685,3345.8,3345.4,0.00113685]
[1642037360164,0.00170527,3345.9,3345.4,0.00113685]
[1642037360565,0.00113685,3345.8,3345.4,0.00113685]
[1642037360967,0.00284212,3346.1,3345.3,0.00170527]
[1642037361286,2.56257803,3346.2,3345.3,0.00170527]
[1642037361287,0.00227369,3346.0,3345.3,0.00170527]
[1642037361666,0.00170527,3345.9,3345.3,0.00170527]
[1642037362067,0.00113685,3345.8,3345.3,0.00170527]
[1642037362470,0.00284212,3346.1,3345.3,0.00170527]
[1642037362908,0.00227369,3346.0,3345.3,0.00170527]
[1642037363209,0.00170527,3345.9,3345.3,0.00170527]
[1642037363611,0.00113685,3345.8,3345.3,0.00170527]
[1642037364012,0.00284212,3346.1,3345.3,0.00170527]
[1642037364213,0.00284212,3346.1,3345.4,0.51451431]
[1642037364411,0.00227369,3346.0,3345.5,2.06543309]
[1642037364611,0.00227369,3346.0,3345.6,0.46381091]
[1642037364811,2.56257803,3346.2,3345.6,0.46381091]
[1642037364812,0.00170527,3345.9,3345.6,0.46381091]
[1642037365214,0.00113685,3345.8,3345.6,1.46381091]
[1642037365413,0.00113685,3345.8,3345.7,0.41086348]
[1642037365614,0.00284212,3346.1,3345.8,0.0335188]
[1642037365815,1.10653295,3346.3,3345.9,0.426]
[1642037366014,1.24175046,3346.6,3345.9,0.726]
[1642037366015,0.00284212,3346.1,3345.9,0.726]
[1642037366213,0.00284212,3346.1,3345.9,0.76529329]
[1642037366416,0.00227369,3346.0,3345.9,1.13876679]
[1642037366673,0.00227369,3346.0,3345.9,1.13335021]
[1642037366872,0.00852635,3346.0,3345.9,5.20735021]
[1642037367272,0.00852635,3346.0,3345.9,5.20588236]
[1642037367473,0.00852635,3346.0,3345.9,5.20505658]
[1642037367675,0.00852635,3346.0,3345.9,5.20995964]
[1642037367873,0.00852635,3346.0,3345.9,5.20434653]
[1642037368074,0.00852635,3346.0,3345.9,1.00434653]
[1642037371116,0.00852635,3346.0,3345.9,4.15434653]
[1642037371313,0.00852635,3346.0,3345.9,5.15939561]
[1642037371513,0.00852635,3346.0,3345.9,3.55939561]
[1642037371717,0.00852635,3346.0,3345.9,3.56809178]
[1642037371917,0.00852635,3346.0,3345.9,8.97231387]
[1642037372317,0.00852635,3346.0,3345.9,5.37231387]
[1642037372920,0.00852635,3346.0,3345.9,5.16809178]
[1642037373120,0.00852635,3346.0,3345.9,5.12852258]
[1642037373821,0.00852635,3346.0,3345.9,4.82852258]
[1642037375002,0.00852635,3346.0,3345.9,6.62999096]
[1642037375202,0.00852635,3346.0,3345.9,4.82852258]
[1642037375402,0.00852635,3346.0,3345.9,6.64346919]
[1642037376003,0.00852635,3346.0,3345.9,6.94346919]
[1642037380013,4.14928298,3347.3,3346.1,0.04328399]
[1642037380216,4.14928298,3347.3,3346.7,0.0298187]
[1642037380417,0.84248298,3347.3,3346.7,0.0298187]
[1642037380618,0.1195,3347.3,3346.7,0.0298187]
[1642037380817,0.1195,3347.3,3346.8,0.00170527]
[1642037381015,1.50911993,3347.6,3346.8,0.00170527]
[1642037381016,1.51846736,3347.1,3346.8,0.00170527]
[1642037381415,1.01846736,3347.1,3346.8,0.00170527]
[1642037381660,1.01846736,3347.1,3346.7,0.00227369]
[1642037382064,2.56186637,3347.0,3346.7,0.00227369]
[1642037382666,0.1195,3346.9,3346.7,0.00227369]
[1642037382865,0.1195,3346.9,3346.0,0.00625266]
[1642037383464,1.43201549,3346.1,3346.0,0.00625266]
[1642037385068,0.1195,3346.2,3346.0,0.00625266]
[1642037385267,2.56186637,3346.8,3346.0,0.00625266]
[1642037385268,0.1195,3346.7,3346.0,0.00625266]
[1642037385534,2.56186637,3346.1,3346.0,0.00625266]
[1642037386136,3.66495601,3346.1,3346.0,0.00625266]
[1642037386836,1.246389,3346.3,3346.0,0.00625266]
[1642037387037,2.56186637,3346.6,3346.0,0.00625266]
[1642037388638,2.56186637,3346.1,3346.0,0.00625266]
[1642037389264,2.56186637,3346.2,3346.0,0.00625266]
[1642037390264,2.56186637,3346.6,3346.0,0.00625266]
[1642037390968,2.56186637,3346.6,3346.1,0.3734777]
[1642037391166,2.56186637,3346.6,3346.2,0.3]
[1642037391366,2.56186637,3346.6,3346.2,0.30511581]
[1642037391566,1.27036815,3346.5,3346.3,0.00454739]
[1642037392167,1.27036815,3346.5,3346.3,0.30454739]
[1642037392366,1.27036815,3346.5,3346.3,0.3]
[1642037392566,5.82036815,3346.5,3346.4,0.00397896]
[1642037393012,5.82036815,3346.5,3346.2,0.00511581]
[1642037395117,1.38986815,3346.5,3346.2,0.00511581]
[1642037396121,1.27036815,3346.5,3346.2,0.00511581]
[1642037396319,1.27036815,3346.5,3346.3,0.00502881]
[1642037396765,1.27036815,3346.5,3346.4,0.00397896]
[1642037397569,4.72036815,3346.5,3346.4,0.00397896]
[1642037398771,1.27036815,3346.5,3346.4,0.00397896]
[1642037401616,5.27036815,3346.5,3346.4,0.00397896]
[1642037402221,5.98841269,3346.5,3346.4,0.00397896]
[1642037403222,1.98841269,3346.5,3345.9,0.37352]
[1642037403429,3.49753262,3346.5,3345.9,0.37352]
[1642037404263,3.49753262,3346.5,3346.0,0.3735005]
[1642037404663,2.77948808,3346.5,3346.0,0.3735005]
[1642037404868,1.27036815,3346.5,3346.0,0.3735005]
[1642037405268,3.00333385,3346.6,3346.0,0.6235005]
[1642037405269,1.50911993,3346.6,3346.0,0.6235005]
[1642037405467,1.50911993,3346.6,3346.0,0.9235005]
[1642037405666,1.50911993,3346.6,3346.0,0.6235005]
[1642037405867,1.50911993,3346.7,3346.0,0.6235005]
[1642037406371,0.00223359,3346.4,3346.0,0.6235005]
[1642037407469,1.18096278,3346.3,3346.0,0.6235005]
[1642037407772,0.00223359,3346.4,3346.1,0.00170527]
[1642037408021,0.00223359,3346.4,3346.1,1.03915971]
[1642037408421,0.00223359,3346.4,3346.2,0.00113685]
[1642037409422,0.00223359,3346.4,3346.3,0.3878716]
[1642037409623,0.00223359,3346.4,3346.3,1.0757432]
[1642037410220,0.00223359,3346.4,3346.3,0.7757432]
[1642037411122,0.00223359,3346.4,3346.3,0.80792289]
[1642037411322,4.07141222,3346.7,3346.3,0.80792289]
[1642037411527,4.07141222,3346.7,3346.5,0.03185838]
[1642037411774,4.07141222,3346.7,3346.5,5.30785838]
[1642037411972,4.07141222,3346.7,3346.5,1.05785838]
[1642037412170,1.222e-05,3347.1,3346.5,1.43128468]
[1642037412372,0.71805676,3347.1,3346.6,3.67734631]
[1642037412572,0.00170527,3346.9,3346.7,1.33887672]
[1642037412974,0.00113685,3346.8,3346.7,1.33887672]
[1642037413677,0.00113685,3346.8,3346.7,0.33887672]
[1642037413877,0.71804454,3347.6,3346.8,7.2]